Cogmind - Beta 14 *** ADVENTURER MODE // 2024.09.18 @ 19:24:28 Player: ZarZap Result: Destroyed by D-53 Grenadier with Mini Grenade Launcher Performance ------------- Evolutions (0) 0 Regions Visited (2) 400 Robots Destroyed (13) 65 Value Destroyed (316) 316 Prototype IDs (0) 0 Alien Tech Used (0) 0 Bonus (0) 0 TOTAL SCORE: 781 Bonus ------- None Cogmind --------- Core Integrity 0/250 Matter 300/300 Energy 250/250 System Corruption 1% Temperature Cool (0) Movement Rolling (80) Location -10/Mines Parts ------- > --- POWER (1) -------- Ion Engine > --- PROPULSION (2) --- Wheel Wheel > --- UTILITY (2) ------ Small Storage Unit > --- WEAPON (2) ------- Particle Gun Light Assault Rifle > --- INVENTORY (8) ---- Ion Engine Light Ion Engine Wheel Wheel Signal Interpreter Medium Laser Beam Cannon Datajack Peak State ------------ > --- POWER ------------ Ion Engine > --- PROPULSION ------- Wheel Compact Wheel > --- UTILITY ---------- Small Storage Unit Sensor Array > --- WEAPON ----------- Medium Laser Assault Rifle > --- INVENTORY -------- Ion Engine Beam Cannon Light Assault Rifle [Rating: 7] Favorites ----------- Power Ion Engine Engine Ion Engine Propulsion Wheel Leg Aluminum Leg Wheel Wheel Utility Small Storage Unit Device Sensor Array Storage Small Storage Unit Weapon Medium Laser Energy Gun Medium Laser Ballistic Gun Assault Rifle Build | -11 -10 -10 ------- Run | Yrd Mat Min Slots Evolved . | . . . Power . | . . . Propulsion . | . . . Utility . | . . . Weapon . | . . . Parts Attached 17 | 6 2 9 Power 3 | 1 . 2 Engine 3 | 1 . 2 Core . | . . . Reactor . | . . . Propulsion 7 | 2 1 4 Treads . | . . . Leg 1 | . 1 . Wheel 6 | 2 . 4 Hover . | . . . Flight . | . . . Utility 3 | 1 1 1 Device 2 | . 1 1 Storage 1 | 1 . . Processor . | . . . Hackware . | . . . Protection . | . . . Artifact . | . . . Weapon 4 | 2 . 2 Energy Gun 2 | 1 . 1 Energy Cannon . | . . . Ballistic Gun 2 | 1 . 1 Ballistic Cannon . | . . . Launcher . | . . . Special Weapon . | . . . Impact Weapon . | . . . Slashing Weapon . | . . . Piercing Weapon . | . . . Special Melee Weapon . | . . . Unidentified Prototypes . | . . . Parts Lost 6 | . 1 5 Power 1 | . . 1 Propulsion 2 | . . 2 Utility 2 | . 1 1 Weapon 1 | . . 1 Highest Loss Streak 4 | . 1 4 To Critical Strikes . | . . . Average Slot Usage (%) 81 | . 84 78 Engine 13 | . 14 13 Leg 7 | . 8 6 Wheel 12 | . 11 12 Device 5 | . 7 2 Storage 14 | . 14 14 Energy Gun 14 | . 14 14 Ballistic Gun 13 | . 14 13 Peak Build Rating 7 | 6 7 7 Average Rating 5 | 4 5 5 On Entrance 3 | . 6 5 Naked Turns . | . . . Heaviest Build 15 | 14 15 14 Greatest Support 26 | 26 26 20 Greatest Overweight (x) 4 | . 1 4 Average Overweight (x) . | . . . Largest Inventory Capacity 8 | 8 8 8 Average Capacity 7 | 6 8 8 Most Carried 8 | 2 7 8 Average Carried 5 | . 4 7 Final Capacity 8 | 8 8 8 Final Carried 8 | 2 7 8 Class Distribution -------------------- 92% | Mutant 7% | Scavenger-Mutant Dominant Class ---------------- Mutant | -10/Materials Mutant | -10/Mines Resources | -11 -10 -10 ----------- Run | Yrd Mat Min Matter Collected 465 | 227 116 122 Remotely . | . . . Salvage Created 572 | . 374 198 Parts 25 | . 20 5 Haulers Intercepted . | . . . Recyclers Shooed 1 | . 1 . Parts Field Recycled . | . . . Retrieved Matter . | . . . Parts Self-Destructed . | . . . Prevented . | . . . Kills | -11 -10 -10 ------- Run | Yrd Mat Min Combat Hostiles Destroyed 11 | . 7 4 Guns 10 | . 7 3 Classes Destroyed 6 | . 4 2 Builder 1 | . . 1 Recycler 1 | . 1 . Watcher 2 | . 2 . Swarmer 3 | . 3 . Grunt 6 | . 4 2 Assembled 2 | . . 2 Best Kill Streak 4 | . 4 2 Combat Bots Only 3 | . 3 2 Max Kills in Single Turn 2 | . 2 1 Gunslinging 1 | . 1 . Exploded . | . . . Melee . | . . . Uniques/NPCs Destroyed . | . . . Combat | -11 -10 -10 -------- Run | Yrd Mat Min Hostile Shots Fired 80 | . 46 34 Missed 15 | . 13 2 Damage Taken 789 | . 332 457 Core 252 | . 105 147 Absorbed by Shields . | . . . Ignored by Resistances 232 | . 101 131 Core Remaining (%) 100 | 100 . . Volleys Fired 49 | . 24 25 Largest 2 | . 2 2 Hottest 85 | . 70 85 Shots Fired 95 | . 48 47 Gun 95 | . 48 47 Cannon . | . . . Launcher . | . . . Special . | . . . Kinetic 47 | . 24 23 Thermal 48 | . 24 24 Explosive . | . . . Electromagnetic . | . . . Robot Hit Streak 51 | . 16 51 Robot Miss Streak 1 | . 1 1 Penetration Max . | . . . Secondary Targets 2 | . 2 . Max Gunslinging Chain 1 | . 1 . Shots Hit Robots 83 | . 40 43 Core Hits 35 | . 20 15 Critical Kills . | . . . Critical Parts Destroyed . | . . . Critical Strikes 6 | . 4 2 Burn 6 | . 4 2 Melee Attacks . | . . . Impact . | . . . Slashing . | . . . Piercing . | . . . Sneak Attacks . | . . . Combat Hostiles . | . . . Follow-up Attacks . | . . . Damage Inflicted 1035 | . 500 535 Guns 1022 | . 491 531 Cannons . | . . . Explosions . | . . . Melee . | . . . Ramming 13 | . 9 4 Kinetic 431 | . 218 213 Thermal 591 | . 273 318 Explosive . | . . . Electromagnetic . | . . . Impact . | . . . Slashing . | . . . Piercing . | . . . Highest Corruption 1 | . . 1 Average Corruption 1 | . . 1 Corruption Purged . | . . . Corruption Blocked . | . . . Effects 1 | . . 1 Weapon Failures 1 | . . 1 Overload Shots . | . . . Overflow Damage . | . . . Projectiles . | . . . Explosions . | . . . Melee . | . . . Knockbacks . | . . . Impact . | . . . Kinetic . | . . . Secondary . | . . . Self-Inflicted Damage 2 | . . 2 Shots . | . . . Rammed 1 | . . 1 Targets Rammed 3 | . 2 1 Kicked 2 | . 2 . Crushed . | . . . Highest Temperature 319 | . 156 319 Average Temperature 86 | . 52 119 Received Heat Transfer 474 | . 228 246 Effects 1 | . . 1 Interference 1 | . . 1 Siege Activations . | . . . Robots Corrupted . | . . . Combat Hostiles . | . . . Parts Fried . | . . . Impact Corruptions . | . . . Robots Melted 1 | . . 1 Combat Hostiles 1 | . . 1 Parts Melted 6 | . 3 3 Heat Transferred 2146 | . 1110 1036 Parts Sabotaged . | . . . Parts Stolen . | . . . Parts Stripped . | . . . Power Chain Reactions . | . . . Alert | -11 -10 -10 ------- Run | Yrd Mat Min Peak Influence 194 | . 194 78 Initial 63 | . . 63 Average 84 | . 115 67 Maximum Alert Level . | . . . Low Security (%) 100 | 100 100 100 Level 1 . | . . . Level 2 . | . . . Level 3 . | . . . Level 4 . | . . . Level 5 . | . . . High Security . | . . . Max Security . | . . . Squads Dispatched 1 | . 1 . Investigation 1 | . 1 . Extermination . | . . . Reinforcement . | . . . Assault . | . . . Garrison . | . . . Intercept . | . . . Searches Triggered . | . . . Construction Impeded . | . . . Haulers Reinforced . | . . . Active Scanning Responses . | . . . Cargo Convoy Interrupts . | . . . Stealth | -11 -10 -10 --------- Run | Yrd Mat Min Distress Signals 1 | . 1 . Communications Jammed . | . . . Distress Signals . | . . . Times Spotted 20 | . 9 11 Peak Tracking Total 17 | . 3 17 Tactical Retreats 1 | . . 1 Traps | -11 -10 -10 ------- Run | Yrd Mat Min Traps Triggered 2 | . 2 . Indirectly . | . . . Trap Hack Attempts . | . . . Triggered . | . . . Disarmed . | . . . Reprogrammed . | . . . Reused . | . . . Traps Extracted . | . . . Installed . | . . . Triggered . | . . . Machines | -11 -10 -10 ---------- Run | Yrd Mat Min Machines Disabled . | . . . Max in Single Turn . | . . . Machines Repaired . | . . . Machines Dismantled . | . . . Machines Sabotaged . | . . . Overloaded Fab Kills . | . . . Hacking | -11 -10 -10 --------- Run | Yrd Mat Min Machines Accessed . | . . . Terminals . | . . . Fabricators . | . . . Repair Stations . | . . . Recycling Units . | . . . Scanalyzers . | . . . Garrison Access . | . . . Total Hacks . | . . . Successful . | . . . Failed . | . . . Catastrophic . | . . . Database Lockouts . | . . . Manual . | . . . Terminals . | . . . Fabricators . | . . . Repair Stations . | . . . Recycling Units . | . . . Scanalyzers . | . . . Garrison Access . | . . . Terminal Hacks . | . . . Fabricator Hacks . | . . . Repair Station Hacks . | . . . Recycling Unit Hacks . | . . . Scanalyzer . | . . . Garrison Access Hacks . | . . . Unauthorized Hacks . | . . . Terminals . | . . . Fabricators . | . . . Repair Stations . | . . . Recycling Units . | . . . Scanalyzers . | . . . Garrison Access . | . . . Data Cores Recovered . | . . . Used . | . . . Hacking Detections . | . . . Full Trace Events . | . . . Feedback Events . | . . . Feedback Blocked . | . . . Robot Schematics Acquired . | . . . Robots Built . | . . . Authchips . | . . . Time . | . . . Total Robot Build Rating . | . . . Part Schematics Acquired . | . . . Parts Built . | . . . Authchips . | . . . Time . | . . . Total Part Build Rating . | . . . Parts Repaired . | . . . Time . | . . . Parts Recycled . | . . . Recycled Matter . | . . . Retrieved Matter . | . . . Retrieved Components . | . . . Parts Scanalyzed . | . . . Part Schematics Acquired . | . . . Parts Damaged . | . . . Bothacking | -11 -10 -10 ------------ Run | Yrd Mat Min Used RIF Installer . | . . . Robots Hacked . | . . . Non-combat . | . . . Combat . | . . . Robot Hacks Applied . | . . . Relay Couplers Released . | . . . Fabnet Peak Effective % . | . . . Robots Rewired . | . . . Allies Hacked . | . . . Hacks Repelled . | . . . Allies | -11 -10 -10 -------- Run | Yrd Mat Min Total Allies . | . . . Largest Group . | . . . Highest-Rated Group . | . . . Highest-Rated Ally . | . . . Total Orders . | . . . Ally Attacks . | . . . Total Damage . | . . . Kills . | . . . Allies Corrupted . | . . . Allies Melted . | . . . Intel | -11 -10 -10 ------- Run | Yrd Mat Min Robot Analysis Total . | . . . Derelict Logs Recovered . | . . . Drone Launches . | . . . Drone Recoveries . | . . . Exploration | -11 -10 -10 ------------- Run | Yrd Mat Min Turns Passed 751 | 48 330 373 Spaces Moved 463 | 42 182 239 Core 10 | 3 . 7 Treads . | . . . Legs 128 | . 79 49 Wheels 325 | 39 103 183 Hover . | . . . Flight . | . . . Fastest Speed 50 | 50 90 80 Average Speed 119 | 89 133 113 Slowest Speed 250 | 100 190 250 Overloaded Moves . | . . . Propulsion Burnouts . | . . . Robots Hopped . | . . . Cave-ins Triggered . | . . . Exploration Rate (%) 33 | 3 40 58 Regions Visited 2 Branch Regions 1 Pre-discovered Areas . | . . . Known Exits Taken . | . . . Unknown Exits Taken 2 | 1 1 . Scrap Searched 1 | . . 1 Spaces Dug . | . . . Terrain Destroyed . | . . . Melee . | . . . Projectile . | . . . AOE . | . . . Terrain Rammed . | . . . Walls Destroyed . | . . . Machines Disabled . | . . . Actions | -11 -10 -10 --------- Run | Yrd Mat Min Total 559 | 49 219 291 Wait 18 | . 4 14 Move 461 | 41 181 239 Hop . | . . . Pick Up 9 | 2 5 2 Fast Attach 11 | 6 1 4 Attach 2 | . . 2 Detach . | . . . Swap 4 | . 1 3 Drop 2 | . 1 1 Fire 49 | . 24 25 Melee . | . . . Ram 1 | . . 1 Kick 2 | . 2 . Crush . | . . . Escape Stasis . | . . . Rewire . | . . . Trap . | . . . Miscellaneous . | . . . Route ------- -11/Scrapyard -10/Materials -10/Mines History --------- Turn | Location | Event 14 | -11/Scrapyard | Discovered new exit (range 15) 49 | -11/Scrapyard | Entered Materials 317 | -10/Materials | Build established: Mutant 350 | -10/Materials | Discovered new exit (range 15) 379 | -10/Materials | Entered Mines 433 | -10/Mines | Met a Derelict bent on vengeance 536 | -10/Mines | Core integrity fell below 50% 595 | -10/Mines | Lost 4 parts (1p1n1u1w) 608 | -10/Mines | Assembled infested the area 626 | -10/Mines | Core integrity fell below 20% 649 | -10/Mines | Met 8R-AWN 752 | -10/Mines | Destroyed by D-53 Grenadier with Mini Grenade Launcher Last Messages --------------- 00687_ HV Slug penetrates as-95906. 00687_ as-95906 destroyed. 00687_ HV Slug penetrates Wall. 00688_ as-16736 destroyed. 00689_ HV Slug penetrates as-65433. 00689_ as-65433 suffers critical hit (Destroy). 00689_ as-65433 destroyed. 00689_ HV Slug penetrates Wall. 00689_ HV Slug penetrates Earth. 00691_ Acquired 2 matter. 00697_ U-05 Engineer builds a Wall. 00745_ Slammed into T-07 Excavator. 00746_ The unstable cave ceiling collapses. 00748_ T-07 Excavator destroyed. 00750_ The unstable cave ceiling collapses. 00750_ HV Slug penetrates Wall. 00750_ HV Slug penetrates D-53 Grenadier. 00750_ HV Slug penetrates Wall. 00751_ Dropped Med. Laser. 00752_ Acquired Wheel. Map ----- +----------------------------------------------------+ | ?????????????????????????????###### ???????????? | | ????????????????????????????? ???????????? | | ??????????????????????????????? ??????????? | | ????????????????????????????????# ?????????? | | ???????????????????????????????## ?????#### | | ????????????????????????????? ## #???## # | | ??????????????????????????? #### | | ??????????????????????????? # | | ????????????????????????????????# # | | ????????????????????????????????## # | | ?????????????????????????????????# # ## ## | | ??????????????????????????? ???#??#####?##### | | ??????????????????????????? #??????????????# | | ??????????????????????????? ???????????????#### | | ??????????????????#???????? ??????????????????? | | ??????????????????# ??????? ???????????????????? | | ????????????? ??### ??????? ;???????????????????? | | ????????????? ## ?????? d#???????????????????? | | ???????????? ###### ##??????????????????? | | ???????????? # ##?????????????????? | | ???????????? ##????????????????? | | ????????????# ##???????????????? | | ?????????????? ##??????????????? | | ??? ??????????? g ##?????????????? | | ? ??????????? # #?????????????? | | ? ????????? ?# @ #?????????????? | | ????????? #?## ## #??????????????? | | ? ??????? #??## ###???????????????????? | | ??? ??????? #???###t##?????????????????????? | | ???? ???### ####### ##?????????????????????? | | ????? ??? ?# ####??????????????????? | | ??????# #?? ??# % #??????????????????? | | ??????# ## #??# #### #?????????????????? | | ??????# ##?# #??## #?????????????????? | | ???????# #?# #???## $ ??????????????? | | ????????# #?# #?????### #### #???????????? | | ????????#### ####?# #???????? #?????????????????? | | ???????????# #????# #????????? #????????????????? | | ???????????# #??### #????????? ???????????????? | | ???????????# #??# #?????#???? ??????????????? | | ???????????# #??# ###?#### ???? ?????????????? | | ???????????# #### #???# #### ? ????????????? | | ???????????# #??## ?? #????????????? | | ???????????###### #### ????????????????????? | | ??????????????## ## #???????????????????????? | | ?????????????## ##???#??????????????????? | | ?????????????# %########???????????????? | | ?????????????# ! #???????????????? | | ?????????###?## #???????????????? | | ???????### ### % ##### #???????????????? | +----------------------------------------------------+ Best States ------------- Heat Dissipation 25 Energy Generation 10 Energy Capacity 250 Matter Stores 300 Matter Capacity 300 Sight Range 16 Robot Scan Range 14 Terrain Scan Range 14 Terrain Scan Density 10 Resistance: KI 20 Resistance: TH 20 Resistance: EX 20 Resistance: EM 20 Resistance: I 20 Resistance: S 20 Resistance: P 20 Evasion (%) 44 Offensive Hacking 10 Item Schematics ----------------- None Robot Schematics ------------------ None Fabricated ------------ Nothing Alien Tech Used ----------------- None Achievements -------------- None Challenges ------------ None Game ------ Seed NeutronBackupCasing Manual? 0 Play Time 00:07:50 Cumulative 20.1 hours Start 2024.09.18 @ 19:19:07 End 2024.09.18 @ 19:24:28 Sessions 1 Manual Loads 0 Difficulty Adventurer Special Mode None Game No. 85 Rogue 84 Adventurer 1 Explorer 0 Win Type - Total 0 Types 0/0/0/0/0/0/0/0/0 Lore% 10 Gallery% 24 Achievement% 15 Wizard Run 0 Options --------- Layout 2 ASCII 0 Keyboard 0 Movement Mouse Keybinds 0 Fullscreen 1 Font 16/SmallcapsGlow Map View 55x47 Zoom Use 0% Tactical HUD 1 Map Filters NONE Filters NONE Steam 1 RUN: 22e4e721-c51e-41e6-bd39-79ce711ba8de